fUSD/lending_fUSD_20260616
["ID","MTS","AMOUNT","RATE_DAILY","PERIOD"]
[425142794,1781548278000,-210.738471,0.00032877,7]
[425142793,1781548278000,-1006.657166,0.00032877,7]
[425142795,1781548278000,-1006.657166,0.00032877,7]
[425142797,1781548278000,-1006.657166,0.00032877,7]
[425142796,1781548278000,-210.738471,0.00032877,7]
[425142801,1781548278000,-210.738471,0.00032877,7]
[425142802,1781548278000,-1006.657166,0.00032877,7]
[425142809,1781548278000,-1006.657166,0.00032877,7]
[425142810,1781548278000,-210.738471,0.00032877,7]
[425142807,1781548278000,-1006.657166,0.00032877,7]
[425142806,1781548278000,-210.738471,0.00032877,7]
[425142803,1781548278000,-210.738471,0.00032877,7]
[425142808,1781548278000,-210.738471,0.00032877,7]
[425142804,1781548278000,-210.738471,0.00032877,7]
[425142805,1781548278000,-1006.657166,0.00032877,7]
[425142811,1781548278000,-500.0,0.00032877,120]
[425142812,1781548278000,-1700.0,0.00032877,120]
[425142813,1781548278000,-500.0,0.00032877,2]
[425142753,1781548278000,-285.657995,0.00032877,7]
[425142814,1781548278000,-500.0,0.00032877,2]
[425142780,1781548278000,-151.0,0.00032877,7]
[425142785,1781548278000,-285.657992,0.00032877,7]
[425142815,1781548278000,-500.0,0.00032877,2]
[425142784,1781548278000,-1006.657166,0.00032877,7]
[425142781,1781548278000,-285.657995,0.00032877,7]
[425142763,1781548278000,-285.657995,0.00032877,7]
[425142762,1781548278000,-420.126286,0.00032877,7]
[425142754,1781548278000,-420.126286,0.00032877,7]
[425142764,1781548278000,-151.0,0.00032877,7]
[425142761,1781548278000,-151.0,0.00032877,7]
[425142757,1781548278000,-420.126286,0.00032877,7]
[425142760,1781548278000,-420.126286,0.00032877,7]
[425142766,1781548278000,-285.657995,0.00032877,7]
[425142765,1781548278000,-420.126286,0.00032877,7]
[425142775,1781548278000,-151.0,0.00032877,7]
[425142770,1781548278000,-151.0,0.00032877,7]
[425142773,1781548278000,-151.0,0.00032877,7]
[425142774,1781548278000,-285.657995,0.00032877,7]
[425142756,1781548278000,-285.657995,0.00032877,7]
[425142771,1781548278000,-420.126279,0.00032877,7]
[425142782,1781548278000,-1006.657166,0.00032877,7]
[425142779,1781548278000,-285.657995,0.00032877,7]
[425142787,1781548278000,-167.053532,0.00032877,7]
[425142786,1781548278000,-151.0,0.00032877,7]
[425142776,1781548278000,-285.657995,0.00032877,7]
[425142788,1781548278000,-1006.657166,0.00032877,7]
[425142789,1781548278000,-151.0,0.00032877,7]
[425142778,1781548278000,-1006.657166,0.00032877,7]
[425142772,1781548278000,-285.657995,0.00032877,7]
[425142768,1781548278000,-420.126286,0.00032877,7]
[425142769,1781548278000,-285.657995,0.00032877,7]
[425142767,1781548278000,-151.0,0.00032877,7]
[425142777,1781548278000,-151.0,0.00032877,7]
[425142860,1781548279000,-396.18,0.00033159,2]
[425142854,1781548279000,-336.77523419,0.00033123,120]
[425142856,1781548279000,-8971.98013409,0.00033123,5]
[425142853,1781548279000,-455.97833804,0.00033123,120]
[425142846,1781548279000,-150.0,0.0003308,2]
[425142847,1781548279000,-150.0,0.0003308,2]
[425142845,1781548279000,-150.0,0.0003308,2]
[425142848,1781548279000,-150.66770876,0.0003308,2]
[425142844,1781548279000,-150.0,0.0003308,2]
[425142849,1781548279000,-247.0,0.00033114,30]
[425142852,1781548279000,-187.0,0.00033114,30]
[425142858,1781548279000,-644.14,0.00033156,2]
[425142855,1781548279000,-165.79532631,0.00033123,120]
[425142857,1781548279000,-931.32,0.00033126,30]
[425142865,1781548279000,-644.14,0.00033162,2]
[425142859,1781548279000,-482.28,0.00033159,2]
[425142864,1781548279000,-644.14,0.00033162,2]
[425142863,1781548279000,-644.14,0.00033159,2]
[425142862,1781548279000,-396.18,0.00033159,2]
[425142867,1781548279000,-482.08,0.00033162,2]
[425142877,1781548279000,-644.14,0.00033162,2]
[425142866,1781548279000,-482.29,0.00033162,2]
[425142871,1781548279000,-482.29,0.00033162,2]
[425142878,1781548279000,-185.13,0.00033162,2]
[425142851,1781548279000,-197.0,0.00033114,30]
[425142861,1781548279000,-396.18,0.00033159,2]
[425142850,1781548279000,-153.0,0.00033114,30]
[425142829,1781548279000,-150.0,0.00032955,2]
[425142842,1781548279000,-2500.0,0.00033,34]
[425142869,1781548279000,-482.28,0.00033162,2]
[425142816,1781548279000,-500.0,0.00032877,2]
[425142817,1781548279000,-500.0,0.00032877,2]
[425142818,1781548279000,-500.0,0.00032877,2]
[425142819,1781548279000,-432.59744951,0.00032877,2]
[425142822,1781548279000,-182.44,0.0003289,13]
[425142821,1781548279000,-182.44,0.0003289,13]
[425142820,1781548279000,-174.415245,0.00032877,120]
[425142826,1781548279000,-1280.50068141,0.00032925,2]
[425142823,1781548279000,-585.829384,0.000329,7]
[425142825,1781548279000,-330.51,0.000329,120]
[425142824,1781548279000,-585.829384,0.000329,14]
[425142843,1781548279000,-150.0,0.0003308,2]
[425142827,1781548279000,-1084.24666505,0.00032925,7]
[425142828,1781548279000,-614.7,0.00032939,14]
[425142831,1781548279000,-290.91146036,0.00032955,2]
[425142834,1781548279000,-500.0,0.00032955,2]
[425142833,1781548279000,-500.0,0.00032955,2]
[425142835,1781548279000,-509.53144494,0.00032955,2]
[425142836,1781548279000,-247.75880986,0.00032955,2]
[425142832,1781548279000,-500.0,0.00032955,2]
[425142840,1781548279000,-553.72383137,0.00033,3]
[425142837,1781548279000,-52392.5091213,0.00033,2]
[425142841,1781548279000,-602.64,0.00033,30]
[425142839,1781548279000,-1500.0,0.00033,3]
[425142838,1781548279000,-3696.39684795,0.00033,2]
[425142830,1781548279000,-150.0,0.00032955,2]
[425142868,1781548279000,-573.4,0.00033162,2]
[425142915,1781548279000,-305.335053,0.00033177,120]
[425142873,1781548279000,-396.18,0.00033162,2]
[425142904,1781548279000,-482.28,0.00033169,2]
[425142906,1781548279000,-396.18,0.00033169,2]
[425142914,1781548279000,-572.86,0.0003317,2]
[425142913,1781548279000,-482.28,0.0003317,2]
[425142912,1781548279000,-396.18,0.0003317,2]
[425142930,1781548279000,-386.89,0.00033262,7]
[425142908,1781548279000,-482.28,0.00033169,2]
[425142909,1781548279000,-396.18,0.00033169,2]
[425142907,1781548279000,-644.14,0.00033169,2]
[425142910,1781548279000,-396.19,0.00033169,2]
[425142911,1781548279000,-482.28,0.00033169,2]
[425142917,1781548279000,-588.829384,0.000332,7]
[425142916,1781548279000,-591.829384,0.000332,7]
[425142927,1781548279000,-1311.0,0.00033204,30]
[425142928,1781548279000,-217.0,0.00033204,30]
[425142918,1781548279000,-591.829384,0.000332,14]
[425142919,1781548279000,-588.829384,0.000332,14]
[425142921,1781548279000,-2069.0,0.00033204,30]
[425142925,1781548279000,-260.0,0.00033204,30]
[425142923,1781548279000,-208.0,0.00033204,30]
[425142922,1781548279000,-2112.0,0.00033204,30]
[425142920,1781548279000,-19999.99999999,0.000332,2]
[425142926,1781548279000,-154.0,0.00033204,30]
[425142924,1781548279000,-717.0,0.00033204,30]
[425142929,1781548279000,-256.0,0.00033204,30]
[425142905,1781548279000,-482.28,0.00033169,2]
[425142901,1781548279000,-396.18,0.00033167,2]
[425142870,1781548279000,-482.28,0.00033162,2]
[425142899,1781548279000,-644.14,0.00033162,2]
[425142897,1781548279000,-482.28,0.00033162,2]
[425142874,1781548279000,-482.28,0.00033162,2]
[425142876,1781548279000,-482.28,0.00033162,2]
[425142875,1781548279000,-314.74,0.00033162,2]
[425142872,1781548279000,-572.87,0.00033162,2]
[425142879,1781548279000,-395.73,0.00033162,2]
[425142881,1781548279000,-482.28,0.00033162,2]
[425142883,1781548279000,-482.28,0.00033162,2]
[425142882,1781548279000,-644.14,0.00033162,2]
[425142884,1781548279000,-482.28,0.00033162,2]
[425142885,1781548279000,-482.28,0.00033162,2]
[425142891,1781548279000,-396.06,0.00033162,2]
[425142886,1781548279000,-644.14,0.00033162,2]
[425142880,1781548279000,-644.15,0.00033162,2]
[425142888,1781548279000,-185.13,0.00033162,2]
[425142889,1781548279000,-383.89,0.00033162,2]
[425142900,1781548279000,-166.21677542,0.00033166,7]
[425142898,1781548279000,-482.28,0.00033162,2]
[425142896,1781548279000,-184.99,0.00033162,2]
[425142892,1781548279000,-644.14,0.00033162,2]
[425142903,1781548279000,-482.23,0.00033169,2]
[425142895,1781548279000,-573.4,0.00033162,2]
[425142902,1781548279000,-481.73,0.00033167,2]
[425142893,1781548279000,-482.28,0.00033162,2]
[425142887,1781548279000,-396.19,0.00033162,2]
[425142890,1781548279000,-396.18,0.00033162,2]
[425142894,1781548279000,-644.14,0.00033162,2]
[425142970,1781548280000,-573.4,0.00033991,2]
[425142969,1781548280000,-644.14,0.00033991,2]
[425142971,1781548280000,-396.18,0.00033991,2]
[425142965,1781548280000,-573.4,0.00033984,2]
[425142958,1781548280000,-12989.46857538,0.0003392,2]
[425142966,1781548280000,-482.28,0.00033984,2]
[425142967,1781548280000,-573.4,0.00033984,2]
[425142974,1781548280000,-573.4,0.00033992,2]
[425142964,1781548280000,-396.04,0.00033984,2]
[425142968,1781548280000,-396.37,0.00033991,2]
[425142963,1781548280000,-482.28,0.00033981,2]
[425142973,1781548280000,-644.14,0.00033991,2]
[425142987,1781548280000,-46632.8032425,0.00034,9]
[425142976,1781548280000,-5042.0,0.00034,3]
[425142975,1781548280000,-150.339988,0.00033999,2]
[425142982,1781548280000,-200.0,0.00034,5]
[425142979,1781548280000,-500.0,0.00034,5]
[425142980,1781548280000,-500.0,0.00034,5]
[425142983,1781548280000,-200.0,0.00034,5]
[425142978,1781548280000,-7714.85267024,0.00034,10]
[425142984,1781548280000,-200.0,0.00034,5]
[425142985,1781548280000,-236.78291614,0.00034,5]
[425142977,1781548280000,-26362.03835465,0.00034,2]
[425142981,1781548280000,-200.0,0.00034,5]
[425142957,1781548280000,-2153.80556002,0.000339,2]
[425142972,1781548280000,-643.58,0.00033991,2]
[425142962,1781548280000,-644.14,0.00033978,2]
[425142947,1781548280000,-3558.0,0.00033761,2]
[425142959,1781548280000,-150.0,0.00033972,2]
[425142990,1781548280000,-2500.0,0.00034,35]
[425142933,1781548280000,-97806.18910568,0.000334,20]
[425142932,1781548280000,-10999.64,0.00033388,14]
[425142934,1781548280000,-585.829384,0.000334,7]
[425142931,1781548280000,-501.0,0.00033356,8]
[425142937,1781548280000,-301.108447,0.00033477,120]
[425142939,1781548280000,-1237.09957145,0.000335,2]
[425142935,1781548280000,-585.829384,0.000334,14]
[425142938,1781548280000,-500.0,0.00033498,26]
[425142936,1781548280000,-249.82,0.000334,14]
[425142951,1781548280000,-150.0,0.00033815,2]
[425142941,1781548280000,-931.32,0.00033624,30]
[425142961,1781548280000,-482.28,0.00033978,2]
[425142940,1781548280000,-2010.54,0.00033605,5]
[425142949,1781548280000,-7988.0,0.00033786,10]
[425142946,1781548280000,-6078.0,0.00033761,2]
[425142943,1781548280000,-591.829384,0.000337,14]
[425142948,1781548280000,-296.940139,0.00033777,120]
[425142944,1781548280000,-222791.45743347,0.000337,7]
[425142942,1781548280000,-591.829384,0.000337,7]
[425142955,1781548280000,-150.0,0.00033815,2]
[425142953,1781548280000,-150.0,0.00033815,2]
[425142960,1781548280000,-644.14,0.00033978,2]
[425142954,1781548280000,-150.0,0.00033815,2]
[425142952,1781548280000,-150.0,0.00033815,2]
[425142956,1781548280000,-1382.46,0.000339,20]
[425142950,1781548280000,-223466.55415552,0.000338,2]
[425142997,1781548280000,-151.0,0.00034113,2]
[425142945,1781548280000,-228.78956075,0.00033753,2]
[425142989,1781548280000,-500.0,0.00034,120]
[425143016,1781548280000,-217.0,0.00034204,30]
[425143023,1781548280000,-194.0,0.00034247,2]
[425143022,1781548280000,-250.0,0.00034247,2]
[425143033,1781548280000,-1210.75369214,0.000343,120]
[425143025,1781548280000,-250.0,0.00034247,2]
[425143026,1781548280000,-385.0,0.00034247,2]
[425143047,1781548280000,-150.0,0.00034453,2]
[425143024,1781548280000,-222.0,0.00034247,2]
[425143027,1781548280000,-225.0,0.00034247,2]
[425143034,1781548280000,-203.31957951,0.000343,120]
[425143030,1781548280000,-193.0,0.00034247,2]
[425143032,1781548280000,-158.24410207,0.00034295,2]
[425143014,1781548280000,-162.0,0.00034204,30]
[425143028,1781548280000,-250.0,0.00034247,2]
[425143031,1781548280000,-227.0,0.00034247,2]
[425143036,1781548280000,-178.76045674,0.00034308,2]
[425143044,1781548280000,-288.778418,0.00034378,120]
[425143037,1781548280000,-193.74,0.00034318,120]
[425143041,1781548280000,-889.66865003,0.00034371,30]
[425143043,1781548280000,-151.391,0.00034372,2]
[425143038,1781548280000,-166.94,0.00034319,120]
[425143039,1781548280000,-199.0,0.00034338,30]
[425143045,1781548280000,-21079.6051,0.00034444,6]
[425143040,1781548280000,-150.0,0.00034368,2]
[425143042,1781548280000,-150.0,0.00034372,2]
[425143046,1781548280000,-397.5,0.00034447,30]
[425143029,1781548280000,-250.0,0.00034247,2]
[425143015,1781548280000,-1311.0,0.00034204,30]
[425143035,1781548280000,-273.92000001,0.000343,120]
[425143013,1781548280000,-260.0,0.00034204,30]
[425143012,1781548280000,-717.0,0.00034204,30]
[425142988,1781548280000,-2357.38,0.00034,5]
[425142986,1781548280000,-414029.69314294,0.00034,2]
[425142991,1781548280000,-990.10335082,0.00034,120]
[425142996,1781548280000,-351.41,0.00034089,7]
[425142992,1781548280000,-1245.34169311,0.00034,120]
[425142994,1781548280000,-158.24410207,0.00034021,2]
[425142995,1781548280000,-292.830129,0.00034078,120]
[425142999,1781548280000,-153.0,0.00034114,30]
[425142998,1781548280000,-247.0,0.00034114,30]
[425143009,1781548280000,-2069.0,0.00034204,30]
[425143000,1781548280000,-197.0,0.00034114,30]
[425143003,1781548280000,-501.0,0.00034134,9]
[425142993,1781548280000,-215.896407,0.00034,120]
[425143001,1781548280000,-187.0,0.00034114,30]
[425143018,1781548280000,-6000.0,0.00034234,15]
[425143010,1781548280000,-2112.0,0.00034204,30]
[425143019,1781548280000,-5935.81940919,0.00034234,3]
[425143020,1781548280000,-500.0,0.00034247,120]
[425143011,1781548280000,-208.0,0.00034204,30]
[425143017,1781548280000,-256.0,0.00034204,30]
[425143021,1781548280000,-250.0,0.00034247,2]
[425143008,1781548280000,-249.82,0.000342,15]
[425143006,1781548280000,-150.0,0.0003419,2]
[425143007,1781548280000,-2154.575,0.000342,20]
[425143004,1781548280000,-152.9407,0.00034154,2]
[425143002,1781548280000,-765.25451575,0.00034126,60]
[425143005,1781548280000,-564.3,0.00034182,7]
[425143072,1781548281000,-152.40300567,0.0003455,2]
[425143068,1781548281000,-163.0695,0.00034526,2]
[425143071,1781548281000,-150.0,0.0003455,2]
[425143073,1781548281000,-1899.9,0.00034564,5]
[425143069,1781548281000,-150.0,0.0003455,2]
[425143077,1781548281000,-300.0,0.00034575,2]
[425143070,1781548281000,-150.0,0.0003455,2]
[425143080,1781548281000,-300.0,0.00034575,2]
[425143074,1781548281000,-1734.68,0.00034567,2]
[425143075,1781548281000,-158.24410207,0.00034569,2]
[425143078,1781548281000,-300.0,0.00034575,2]
[425143063,1781548281000,-1500.0,0.000345,5]
[425143081,1781548281000,-300.0,0.00034575,2]
[425143088,1781548281000,-460.90205733,0.00034575,2]
[425143084,1781548281000,-300.0,0.00034575,2]
[425143076,1781548281000,-300.0,0.00034575,2]
[425143065,1781548281000,-500.0,0.00034503,28]
[425143058,1781548281000,-1135.4558,0.000345,20]
[425143064,1781548281000,-154.55362141,0.000345,2]
[425143082,1781548281000,-300.0,0.00034575,2]
[425143049,1781548281000,-150.0,0.00034453,2]
[425143048,1781548281000,-150.0,0.00034453,2]
[425143051,1781548281000,-500.0,0.00034453,2]
[425143050,1781548281000,-500.0,0.00034453,2]
[425143056,1781548281000,-6700.0,0.00034463,7]
[425143053,1781548281000,-150.0,0.00034453,2]
[425143054,1781548281000,-150.0,0.00034453,2]
[425143055,1781548281000,-150.0,0.00034453,2]
[425143057,1781548281000,-2115.66,0.000345,20]
[425143062,1781548281000,-1340.08,0.000345,20]
[425143060,1781548281000,-1340.085,0.000345,10]
[425143059,1781548281000,-2116.24,0.000345,20]
[425143061,1781548281000,-1488.98,0.000345,20]
[425143066,1781548281000,-179.81,0.00034521,120]
[425143067,1781548281000,-2214.5576,0.00034526,2]
[425143052,1781548281000,-500.0,0.00034453,2]
[425143079,1781548281000,-300.0,0.00034575,2]
[425143083,1781548281000,-300.0,0.00034575,2]
[425143105,1781548281000,-300.0,0.00034575,2]
[425143110,1781548281000,-300.0,0.00034575,2]
[425143109,1781548281000,-583.4214993,0.00034575,2]
[425143108,1781548281000,-596.39173255,0.00034575,2]
[425143120,1781548281000,-1099.53596865,0.00034575,2]
[425143111,1781548281000,-300.0,0.00034575,2]
[425143112,1781548281000,-300.0,0.00034575,2]
[425143121,1781548281000,-300.0,0.00034575,2]
[425143113,1781548281000,-300.00000001,0.00034575,2]
[425143117,1781548281000,-834.9032276,0.00034575,2]
[425143118,1781548281000,-370.58561489,0.00034575,2]
[425143114,1781548281000,-300.0,0.00034575,2]
[425143115,1781548281000,-445.41733729,0.00034575,2]
[425143116,1781548281000,-300.23615643,0.00034575,2]
[425143086,1781548281000,-583.4214993,0.00034575,2]
[425143103,1781548281000,-952.86637483,0.00034575,2]
[425143107,1781548281000,-300.0,0.00034575,2]
[425143119,1781548281000,-300.00000001,0.00034575,2]
[425143101,1781548281000,-528.93064975,0.00034575,2]
[425143085,1781548281000,-596.39173255,0.00034575,2]
[425143104,1781548281000,-300.16937986,0.00034575,2]
[425143087,1781548281000,-300.0,0.00034575,2]
[425143090,1781548281000,-300.45254633,0.00034575,2]
[425143089,1781548281000,-475.98384278,0.00034575,2]
[425143096,1781548281000,-450.41297901,0.00034575,2]
[425143091,1781548281000,-834.9032276,0.00034575,2]
[425143097,1781548281000,-300.0,0.00034575,2]
[425143092,1781548281000,-300.0,0.00034575,2]
[425143098,1781548281000,-300.0,0.00034575,2]
[425143094,1781548281000,-606.92603118,0.00034575,2]
[425143106,1781548281000,-1345.93432611,0.00034575,2]
[425143095,1781548281000,-300.0,0.00034575,2]
[425143099,1781548281000,-300.0,0.00034575,2]
[425143102,1781548281000,-300.0,0.00034575,2]
[425143093,1781548281000,-300.0,0.00034575,2]
[425143100,1781548281000,-321.10091815,0.00034575,2]
[425143169,1781548282000,-300.0,0.00034575,2]
[425143161,1781548282000,-300.0,0.00034575,2]
[425143159,1781548282000,-445.41733729,0.00034575,2]
[425143168,1781548282000,-300.0,0.00034575,2]
[425143155,1781548282000,-300.0,0.00034575,2]
[425143157,1781548282000,-300.65806593,0.00034575,2]
[425143156,1781548282000,-300.0,0.00034575,2]
[425143153,1781548282000,-583.4214993,0.00034575,2]
[425143166,1781548282000,-508.80870259,0.00034575,2]
[425143154,1781548282000,-300.0,0.00034575,2]
[425143158,1781548282000,-300.0,0.00034575,2]
[425143160,1781548282000,-300.0,0.00034575,2]
[425143173,1781548282000,-300.0,0.00034575,2]
[425143163,1781548282000,-834.9032276,0.00034575,2]
[425143165,1781548282000,-1099.53596865,0.00034575,2]
[425143167,1781548282000,-300.0,0.00034575,2]
[425143164,1781548282000,-300.0,0.00034575,2]
[425143171,1781548282000,-300.0,0.00034575,2]
[425143170,1781548282000,-300.0,0.00034575,2]
[425143178,1781548282000,-300.0,0.00034575,2]
[425143172,1781548282000,-510.16187657,0.00034575,2]
[425143175,1781548282000,-300.0,0.00034575,2]
[425143176,1781548282000,-300.00000001,0.00034575,2]
[425143179,1781548282000,-300.0,0.00034575,2]
[425143146,1781548282000,-300.0,0.00034575,2]
[425143162,1781548282000,-300.0,0.00034575,2]
[425143152,1781548282000,-300.29204227,0.00034575,2]
[425143129,1781548282000,-606.92603117,0.00034575,2]
[425143151,1781548282000,-596.39173255,0.00034575,2]
[425143174,1781548282000,-300.0,0.00034575,2]
[425143126,1781548282000,-494.53026193,0.00034575,2]
[425143122,1781548282000,-300.92688969,0.00034575,2]
[425143128,1781548282000,-300.0,0.00034575,2]
[425143125,1781548282000,-300.0,0.00034575,2]
[425143123,1781548282000,-300.0,0.00034575,2]
[425143127,1781548282000,-300.0,0.00034575,2]
[425143124,1781548282000,-300.0,0.00034575,2]
[425143131,1781548282000,-536.07617039,0.00034575,2]
[425143132,1781548282000,-300.0,0.00034575,2]
[425143130,1781548282000,-300.0,0.00034575,2]
[425143134,1781548282000,-300.00000001,0.00034575,2]
[425143148,1781548282000,-300.0,0.00034575,2]
[425143133,1781548282000,-300.75310972,0.00034575,2]
[425143137,1781548282000,-300.0,0.00034575,2]
[425143135,1781548282000,-300.0,0.00034575,2]
[425143140,1781548282000,-345.24105344,0.00034575,2]
[425143136,1781548282000,-300.0,0.00034575,2]
[425143142,1781548282000,-300.0,0.00034575,2]
[425143139,1781548282000,-321.10091815,0.00034575,2]
[425143141,1781548282000,-528.93064975,0.00034575,2]
[425143138,1781548282000,-300.0,0.00034575,2]
[425143143,1781548282000,-952.86637483,0.00034575,2]
[425143145,1781548282000,-300.0,0.00034575,2]
[425143149,1781548282000,-1346.16314365,0.00034575,2]
[425143147,1781548282000,-310.80214287,0.00034575,2]
[425143144,1781548282000,-1804.56932032,0.00034575,2]
[425143180,1781548282000,-300.0,0.00034575,2]
[425143150,1781548282000,-300.0,0.00034575,2]
[425143182,1781548282000,-300.0,0.00034575,2]
[425143211,1781548282000,-583.4214993,0.00034575,2]
[425143213,1781548282000,-453.65517008,0.00034575,2]
[425143214,1781548282000,-300.0,0.00034575,2]
[425143215,1781548282000,-300.0,0.00034575,2]
[425143212,1781548282000,-300.00000001,0.00034575,2]
[425143216,1781548282000,-300.0,0.00034575,2]
[425143218,1781548282000,-300.0,0.00034575,2]
[425143225,1781548282000,-300.0,0.00034575,2]
[425143226,1781548282000,-834.9032276,0.00034575,2]
[425143217,1781548282000,-300.0,0.00034575,2]
[425143219,1781548282000,-300.0,0.00034575,2]
[425143220,1781548282000,-445.41733731,0.00034575,2]
[425143210,1781548282000,-300.0,0.00034575,2]
[425143221,1781548282000,-300.0,0.00034575,2]
[425143223,1781548282000,-300.0,0.00034575,2]
[425143222,1781548282000,-300.0,0.00034575,2]
[425143233,1781548282000,-300.0,0.00034575,2]
[425143228,1781548282000,-1099.53596865,0.00034575,2]
[425143237,1781548282000,-300.0,0.00034575,2]
[425143227,1781548282000,-300.0,0.00034575,2]
[425143235,1781548282000,-300.0,0.00034575,2]
[425143236,1781548282000,-300.00000001,0.00034575,2]
[425143232,1781548282000,-300.0,0.00034575,2]
[425143234,1781548282000,-300.0,0.00034575,2]
[425143229,1781548282000,-508.80870259,0.00034575,2]
[425143231,1781548282000,-300.0,0.00034575,2]
[425143224,1781548282000,-300.0,0.00034575,2]
[425143204,1781548282000,-1346.16314365,0.00034575,2]
[425143177,1781548282000,-494.53026194,0.00034575,2]
[425143207,1781548282000,-300.0,0.00034575,2]
[425143192,1781548282000,-300.22539401,0.00034575,2]
[425143183,1781548282000,-300.0,0.00034575,2]
[425143181,1781548282000,-606.92603117,0.00034575,2]
[425143185,1781548282000,-300.0,0.00034575,2]
[425143191,1781548282000,-300.0,0.00034575,2]
[425143187,1781548282000,-300.75310972,0.00034575,2]
[425143184,1781548282000,-536.07617039,0.00034575,2]
[425143206,1781548282000,-300.0,0.00034575,2]
[425143189,1781548282000,-300.0,0.00034575,2]
[425143188,1781548282000,-300.00000001,0.00034575,2]
[425143190,1781548282000,-300.0,0.00034575,2]
[425143193,1781548282000,-345.24105341,0.00034575,2]
[425143194,1781548282000,-528.93064975,0.00034575,2]
[425143186,1781548282000,-300.0,0.00034575,2]
[425143199,1781548282000,-1804.8149799,0.00034575,2]
[425143195,1781548282000,-300.0,0.00034575,2]
[425143209,1781548282000,-300.00000001,0.00034575,2]
[425143208,1781548282000,-596.39173255,0.00034575,2]
[425143205,1781548282000,-300.0,0.00034575,2]
[425143203,1781548282000,-300.0,0.00034575,2]
[425143230,1781548282000,-300.00000001,0.00034575,2]
[425143197,1781548282000,-868.02305374,0.00034575,2]
[425143202,1781548282000,-310.80214287,0.00034575,2]
[425143201,1781548282000,-300.0,0.00034575,2]
[425143196,1781548282000,-300.0,0.00034575,2]
[425143198,1781548282000,-952.86637483,0.00034575,2]
[425143200,1781548282000,-300.00000001,0.00034575,2]
[425143271,1781548283000,-300.0,0.00034575,2]
[425143279,1781548283000,-300.0,0.00034575,2]
[425143276,1781548283000,-1346.16314365,0.00034575,2]
[425143277,1781548283000,-300.0,0.00034575,2]
[425143274,1781548283000,-310.80214287,0.00034575,2]
[425143266,1781548283000,-300.0,0.00034575,2]
[425143275,1781548283000,-300.0,0.00034575,2]
[425143273,1781548283000,-300.0,0.00034575,2]
[425143270,1781548283000,-300.0,0.00034575,2]
[425143269,1781548283000,-1804.8149799,0.00034575,2]
[425143272,1781548283000,-300.0,0.00034575,2]
[425143284,1781548283000,-583.4214993,0.00034575,2]
[425143294,1781548283000,-300.0,0.00034575,2]
[425143283,1781548283000,-300.0,0.00034575,2]
[425143280,1781548283000,-596.39173256,0.00034575,2]
[425143282,1781548283000,-513.2596001,0.00034575,2]
[425143278,1781548283000,-300.0,0.00034575,2]
[425143286,1781548283000,-453.65517008,0.00034575,2]
[425143285,1781548283000,-300.0,0.00034575,2]
[425143292,1781548283000,-300.0,0.00034575,2]
[425143295,1781548283000,-300.0,0.00034575,2]
[425143296,1781548283000,-300.0,0.00034575,2]
[425143291,1781548283000,-300.0,0.00034575,2]
[425143297,1781548283000,-300.0,0.00034575,2]
[425143287,1781548283000,-300.0,0.00034575,2]